fUST/lending_fUST_20250101
["ID","MTS","AMOUNT","RATE_DAILY","PERIOD"]
[347336406,1735703438201,-500.0,0.00019178,2]
[347336408,1735703438211,-500.0,0.00019178,2]
[347336410,1735703438220,-500.0,0.00019178,2]
[347336412,1735703438229,-500.0,0.00019178,2]
[347336414,1735703438238,-630.82674765,0.00019178,2]
[347336416,1735703438248,-500.0,0.00019178,2]
[347336418,1735703438257,-500.0,0.00019178,2]
[347336420,1735703438266,-500.0,0.00019178,2]
[347336422,1735703438276,-500.0,0.00019178,2]
[347336424,1735703438285,-500.0,0.00019178,2]
[347336426,1735703438294,-500.0,0.00019178,2]
[347336428,1735703438304,-503.30847739,0.00019178,2]
[347336429,1735703438314,-500.0,0.00019178,2]
[347336431,1735703438324,-500.0,0.00019178,2]
[347336433,1735703438333,-501.0918928,0.00019178,2]
[347336435,1735703438343,-501.58081233,0.00019178,2]
[347336437,1735703438352,-1235.2,0.00019178,2]
[347336439,1735703438361,-1235.2,0.00019178,2]
[347336441,1735703438371,-1235.2,0.00019178,2]
[347336443,1735703438380,-501.98395574,0.00019178,2]
[347336445,1735703438390,-1235.2,0.00019178,2]
[347336447,1735703438400,-1235.2,0.00019178,2]
[347336449,1735703438409,-1235.2,0.00019178,2]
[347336451,1735703438418,-500.0,0.00019178,2]
[347336453,1735703438428,-1235.2,0.00019178,2]
[347336455,1735703438438,-1235.2,0.00019178,2]
[347336457,1735703438448,-1235.2,0.00019178,2]
[347336459,1735703438457,-1235.2,0.00019178,2]
[347336461,1735703438466,-504.09867204,0.00019178,2]
[347336463,1735703438476,-919.884247,0.00019178,2]
[347336465,1735703438485,-1235.2,0.00019178,2]
[347336467,1735703438494,-503.10502137,0.00019178,2]
[347336469,1735703438503,-463.05431304,0.00019178,2]
[347336471,1735703438513,-1235.2,0.00019178,2]
[347336473,1735703438522,-919.884247,0.00019178,2]
[347336475,1735703438531,-1235.2,0.00019178,2]
[347336477,1735703438540,-919.884247,0.00019178,2]
[347336478,1735703438549,-1235.2,0.00019178,2]
[347336480,1735703438559,-501.36692143,0.00019178,2]
[347336482,1735703438568,-1235.2,0.00019178,2]
[347336484,1735703438578,-1235.2,0.00019178,2]
[347336486,1735703438586,-919.884247,0.00019178,2]
[347336488,1735703438596,-1235.2,0.00019178,2]
[347336490,1735703438605,-1235.2,0.00019178,2]
[347336492,1735703438614,-919.884247,0.00019178,2]
[347336494,1735703438624,-505.12024199,0.00019178,2]
[347336496,1735703438633,-503.82382776,0.00019178,2]
[347336498,1735703438643,-919.884247,0.00019178,2]
[347336500,1735703438652,-1235.2,0.00019178,2]
[347336502,1735703438662,-1235.2,0.00019178,2]
[347336504,1735703438672,-1235.2,0.00019178,2]
[347336506,1735703438681,-1235.2,0.00019178,2]
[347336508,1735703438690,-919.884247,0.00019178,2]
[347336510,1735703438699,-1235.2,0.00019178,2]
[347336511,1735703438708,-1235.32789502,0.00019178,2]
[347336512,1735703438719,-919.884247,0.00019178,2]
[347336513,1735703438728,-502.40989583,0.00019178,2]
[347336514,1735703438738,-919.884247,0.00019178,2]
[347336515,1735703438747,-500.603749,0.00019178,2]
[347336516,1735703438757,-919.884247,0.00019178,2]
[347336517,1735703438767,-538.93,0.00019178,2]
[347336518,1735703438776,-550.25401207,0.00019178,2]
[347336519,1735703438785,-919.884247,0.00019178,2]
[347336520,1735703438795,-919.884247,0.00019178,2]
[347336521,1735703438804,-919.884247,0.00019178,2]
[347336522,1735703438814,-919.884247,0.00019178,2]
[347336523,1735703438823,-919.884247,0.00019178,2]
[347336524,1735703438833,-501.16715681,0.00019178,2]
[347336525,1735703438842,-735.67,0.00019178,2]
[347336526,1735703438851,-919.884247,0.00019178,2]
[347336527,1735703438861,-919.884247,0.00019178,2]
[347336528,1735703438870,-919.884247,0.00019178,2]
[347336529,1735703438880,-501.13281902,0.00019178,2]
[347336530,1735703438889,-501.86166244,0.00019178,2]
[347336531,1735703438899,-513.55356524,0.00019178,2]
[347336532,1735703438908,-500.0,0.00019178,2]
[347336533,1735703438917,-500.0,0.00019178,2]
[347336534,1735703438929,-548.87002097,0.00019178,2]
[347336535,1735703438938,-501.93356791,0.00019178,2]
[347336536,1735703438947,-500.0,0.00019178,2]
[347336537,1735703438957,-501.77347753,0.00019178,2]
[347336538,1735703438966,-503.28787186,0.00019178,2]
[347336539,1735703438976,-1026.094871,0.00019178,2]
[347336540,1735703438986,-523.74914516,0.00019178,2]
[347336541,1735703438995,-495.691518,0.00019178,2]
[347336542,1735703439004,-1026.094871,0.00019178,2]
[347336543,1735703439014,-495.691518,0.00019178,2]
[347336544,1735703439023,-1026.094871,0.00019178,2]
[347336545,1735703439034,-164.83281727,0.00019178,2]
[347336546,1735703439044,-1026.094871,0.00019178,2]
[347336547,1735703439053,-495.691518,0.00019178,2]
[347336549,1735703439063,-500.0,0.00019178,2]
[347336550,1735703439073,-1026.094871,0.00019178,2]
[347336552,1735703439082,-495.691518,0.00019178,2]
[347336554,1735703439092,-1026.094871,0.00019178,2]
[347336556,1735703439102,-495.691518,0.00019178,2]
[347336558,1735703439111,-1026.094871,0.00019178,2]
[347336560,1735703439122,-495.691518,0.00019178,2]
[347336562,1735703439131,-1026.094871,0.00019178,2]
[347336564,1735703439140,-495.691518,0.00019178,2]
[347336566,1735703439150,-495.691518,0.00019178,2]
[347336568,1735703439159,-1026.094871,0.00019178,2]
[347336570,1735703439169,-1026.094871,0.00019178,2]
[347336572,1735703439178,-500.0,0.00019178,2]
[347336574,1735703439187,-500.0,0.00019178,2]
[347336576,1735703439197,-495.691518,0.00019178,2]
[347336578,1735703439206,-1026.094871,0.00019178,2]
[347336580,1735703439216,-495.691518,0.00019178,2]
[347336582,1735703439225,-1026.094871,0.00019178,2]
[347336584,1735703439235,-495.691518,0.00019178,2]
[347336586,1735703439244,-500.0,0.00019178,2]
[347336588,1735703439254,-1026.094871,0.00019178,2]
[347336590,1735703439263,-495.691518,0.00019178,2]
[347336592,1735703439273,-1026.094871,0.00019178,2]
[347336594,1735703439283,-495.691518,0.00019178,2]
[347336596,1735703439292,-1026.094871,0.00019178,2]
[347336598,1735703439302,-495.691518,0.00019178,2]
[347336600,1735703439312,-1026.094871,0.00019178,2]
[347336602,1735703439321,-495.691518,0.00019178,2]
[347336604,1735703439331,-495.691518,0.00019178,2]
[347336606,1735703439340,-500.0,0.00019178,2]
[347336608,1735703439350,-500.0,0.00019178,2]
[347336610,1735703439359,-500.0,0.00019178,2]
[347336612,1735703439368,-500.0,0.00019178,2]
[347336614,1735703439378,-505.302007,0.00019178,2]
[347336616,1735703439387,-500.0,0.00019178,2]
[347336618,1735703439396,-500.0,0.00019178,2]
[347336620,1735703439406,-502.02448644,0.00019178,2]
[347336622,1735703439415,-500.0,0.00019178,2]
[347336624,1735703439424,-501.96341254,0.00019178,2]
[347336626,1735703439433,-500.0,0.00019178,2]
[347336628,1735703439443,-500.0,0.00019178,2]
[347336630,1735703439452,-500.0,0.00019178,2]
[347336632,1735703439462,-500.0,0.00019178,2]
[347336634,1735703439472,-500.0,0.00019178,2]
[347336636,1735703439481,-500.0,0.00019178,2]
[347336637,1735703439491,-501.76004474,0.00019178,2]
[347336639,1735703439500,-501.22868384,0.00019178,2]
[347336641,1735703439510,-500.0,0.00019178,2]
[347336643,1735703439519,-500.0,0.00019178,2]
[347336645,1735703439529,-500.0,0.00019178,2]
[347336647,1735703439539,-500.0,0.00019178,2]
[347336649,1735703439548,-500.0,0.00019178,2]
[347336651,1735703439559,-500.0,0.00019178,2]
[347336653,1735703439568,-500.0,0.00019178,2]
[347336655,1735703439579,-500.0,0.00019178,2]
[347336657,1735703439588,-500.0,0.00019178,2]
[347336659,1735703439598,-500.0,0.00019178,2]
[347336661,1735703439608,-500.0,0.00019178,2]
[347336663,1735703439617,-500.0,0.00019178,2]
[347336665,1735703439627,-500.0,0.00019178,2]
[347336667,1735703439637,-500.0,0.00019178,2]
[347336669,1735703439648,-153.33395195,0.00019178,2]
[347336671,1735703439658,-500.0,0.00019178,2]
[347336672,1735703439668,-500.0,0.00019178,2]
[347336674,1735703439679,-500.0,0.00019178,2]
[347336677,1735703439689,-563.01,0.00019178,2]
[347336679,1735703439699,-500.0,0.00019178,2]
[347336681,1735703439709,-500.0,0.00019178,2]
[347336682,1735703439719,-500.0,0.00019178,2]
[347336684,1735703439728,-512.92111206,0.00019178,2]
[347336686,1735703439738,-500.0,0.00019178,2]
[347336688,1735703439747,-500.0,0.00019178,2]
[347336690,1735703439757,-500.0,0.00019178,2]
[347336692,1735703439766,-500.0,0.00019178,2]
[347336694,1735703439776,-500.0,0.00019178,2]
[347336700,1735703439881,-500.0,0.00019178,2]
[347336701,1735703439902,-501.75577543,0.00019178,2]
[347336702,1735703439911,-502.96038842,0.00019178,2]
[347336703,1735703439921,-500.0,0.00019178,2]
[347336704,1735703439937,-500.0,0.00019178,2]
[347336705,1735703439947,-502.32198646,0.00019178,2]
[347336706,1735703439958,-500.0,0.00019178,2]
[347336707,1735703439967,-3623.89,0.00019178,2]
[347336708,1735703439978,-500.0,0.00019178,2]
[347336709,1735703439988,-811.06,0.00019178,2]
[347336710,1735703439998,-151.0,0.00019178,2]
[347336711,1735703440011,-151.0,0.00019178,2]
[347336712,1735703440021,-151.0,0.00019178,2]
[347336713,1735703440031,-151.0,0.00019178,2]
[347336714,1735703440041,-500.0,0.00019178,2]
[347336715,1735703440051,-151.0,0.00019178,2]
[347336716,1735703440061,-151.0,0.00019178,2]
[347336717,1735703440071,-151.0,0.00019178,2]
[347336718,1735703440082,-151.0,0.00019178,2]
[347336719,1735703440092,-506.42479558,0.00019178,2]
[347336720,1735703440102,-510.779844,0.00019178,2]
[347336721,1735703440112,-151.0,0.00019178,2]
[347336722,1735703440122,-501.3394138,0.00019178,2]
[347336723,1735703440131,-513.10089573,0.00019178,2]
[347336724,1735703440142,-500.0,0.00019178,2]
[347336725,1735703440151,-500.0,0.00019178,2]
[347336726,1735703440161,-500.94178202,0.00019178,2]
[347336727,1735703440170,-502.52460623,0.00019178,2]
[347336728,1735703440180,-500.0,0.00019178,2]
[347336729,1735703440190,-501.12650492,0.00019178,2]
[347336730,1735703440199,-500.0,0.00019178,2]
[347336731,1735703440209,-505.2896672,0.00019178,2]
[347336732,1735703440218,-160.76548782,0.00019178,2]
[347336733,1735703440227,-500.0,0.00019178,2]
[347336734,1735703440236,-500.93232124,0.00019178,2]
[347336735,1735703440246,-500.0,0.00019178,2]
[347336736,1735703440256,-505.0910444,0.00019178,2]
[347336737,1735703440266,-504.92187686,0.00019178,2]
[347336738,1735703440275,-503.37798797,0.00019178,2]
[347336739,1735703440285,-508.62535663,0.00019178,2]
[347336740,1735703440294,-500.0,0.00019178,2]
[347336741,1735703440303,-500.0,0.00019178,2]
[347336742,1735703440314,-1150.54,0.00019178,2]
[347336743,1735703440323,-505.1972788,0.00019178,2]
[347336744,1735703440332,-504.98892204,0.00019178,2]
[347336745,1735703440342,-503.59880926,0.00019178,2]
[347336746,1735703440351,-500.0,0.00019178,2]
[347336747,1735703440361,-502.48887803,0.00019178,2]
[347336748,1735703440370,-500.0,0.00019178,2]
[347336749,1735703440381,-14010.85,0.00019178,2]
[347336750,1735703440391,-151.0,0.00019178,2]
[347336751,1735703440400,-151.0,0.00019178,2]
[347336752,1735703440410,-500.0,0.00019178,2]
[347336753,1735703440419,-151.0,0.00019178,2]
[347336754,1735703440429,-151.0,0.00019178,2]
[347336755,1735703440439,-151.0,0.00019178,2]
[347336756,1735703440448,-151.0,0.00019178,2]
[347336757,1735703440458,-151.0,0.00019178,2]
[347336758,1735703440467,-151.0,0.00019178,2]
[347336759,1735703440476,-151.0,0.00019178,2]
[347336760,1735703440486,-215.95777256,0.00019178,2]
[347336761,1735703440722,-4.72969244,0.00019178,2]
[347336762,1735703440732,-151.0,0.00019178,2]
[347336763,1735703440742,-151.0,0.00019178,2]
[347336764,1735703440751,-151.0,0.00019178,2]
[347336765,1735703440761,-151.0,0.00019178,2]
[347336766,1735703440771,-551.16,0.00019178,2]
[347336767,1735703440780,-151.0,0.00019178,2]
[347336768,1735703440789,-151.0,0.00019178,2]
[347336769,1735703440799,-151.0,0.00019178,2]
[347336770,1735703440809,-218.4007,0.00019178,2]
[347336771,1735703440818,-500.62535232,0.00019178,2]
[347336772,1735703440827,-522.41,0.00019178,2]
[347336773,1735703440837,-500.0,0.00019178,2]
[347336774,1735703440846,-503.65882418,0.00019178,2]
[347336775,1735703440855,-158.92209578,0.00019178,2]
[347336776,1735703440865,-500.0,0.00019178,2]
[347336777,1735703440875,-500.0,0.00019178,2]
[347336778,1735703440884,-500.0,0.00019178,2]
[347336779,1735703440893,-806.84,0.00019178,2]
[347336780,1735703440903,-501.47977084,0.00019178,2]
[347336781,1735703440912,-505.02342002,0.00019178,2]
[347336782,1735703440922,-294.16595312,0.00019178,2]
[347336783,1735703440935,-148.58662401,0.00019178,2]
[347336784,1735703440951,-351.41337599,0.00019178,2]
[347336785,1735703440961,-1959.7,0.00019178,2]
[347336786,1735703440971,-114.03611843,0.00019178,2]
[347336787,1735703440983,-385.96388157,0.00019178,2]
[347336788,1735703440992,-501.26426381,0.00019178,2]
[347336789,1735703441002,-501.07446683,0.00019178,2]
[347336790,1735703441014,-500.0,0.00019178,2]
[347336791,1735703441024,-502.11283474,0.00019178,2]
[347336792,1735703441033,-500.0,0.00019178,2]
[347336793,1735703441043,-151.0,0.00019178,2]
[347336794,1735703441052,-151.0,0.00019178,2]
[347336795,1735703441062,-502.67175818,0.00019178,2]
[347336796,1735703441072,-500.0,0.00019178,2]
[347336797,1735703441082,-151.0,0.00019178,2]
[347336798,1735703441091,-500.0,0.00019178,2]
[347336799,1735703441100,-501.08696958,0.00019178,2]
[347336800,1735703441110,-151.0,0.00019178,2]
[347336801,1735703441120,-151.0,0.00019178,2]
[347336802,1735703441129,-245.602245,0.00019178,2]
[347336803,1735703441139,-500.70175647,0.00019178,2]
[347336804,1735703441149,-713.83,0.00019178,2]
[347336805,1735703441158,-151.0,0.00019178,2]
[347336806,1735703441168,-500.0,0.00019178,2]
[347336807,1735703441177,-151.0,0.00019178,2]
[347336808,1735703441187,-151.0,0.00019178,2]
[347336809,1735703441197,-151.0,0.00019178,2]
[347336810,1735703441207,-151.0,0.00019178,2]
[347336811,1735703441218,-508.0116538,0.00019178,2]
[347336812,1735703441228,-151.0,0.00019178,2]
[347336813,1735703441238,-151.0,0.00019178,2]
[347336814,1735703441247,-151.0,0.00019178,2]
[347336815,1735703441257,-151.0,0.00019178,2]
[347336816,1735703441268,-355.721939,0.00019178,2]
[347336817,1735703441278,-155.867232,0.00019178,2]
[347336818,1735703441287,-355.721939,0.00019178,2]
[347336819,1735703441297,-355.721939,0.00019178,2]
[347336820,1735703441307,-355.721939,0.00019178,2]
[347336821,1735703441317,-355.721939,0.00019178,2]
[347336822,1735703441327,-355.721939,0.00019178,2]
[347336823,1735703441337,-500.0,0.00019178,2]
[347336824,1735703441348,-355.721939,0.00019178,2]
[347336825,1735703441359,-355.721939,0.00019178,2]
[347336826,1735703441369,-355.721939,0.00019178,2]
[347336827,1735703441378,-355.721939,0.00019178,2]
[347336828,1735703441388,-355.721939,0.00019178,2]
[347336829,1735703441398,-500.0,0.00019178,2]
[347336830,1735703441409,-355.721939,0.00019178,2]
[347336831,1735703441529,-355.721939,0.00019178,2]
[347336832,1735703441540,-355.721939,0.00019178,2]
[347336833,1735703441550,-355.721939,0.00019178,2]
[347336834,1735703441559,-355.721939,0.00019178,2]
[347336835,1735703441569,-355.721939,0.00019178,2]
[347336836,1735703441579,-355.721939,0.00019178,2]
[347336837,1735703441589,-355.721939,0.00019178,2]
[347336838,1735703441598,-355.72193,0.00019178,2]
[347336839,1735703441608,-899.777448,0.00019178,2]
[347336840,1735703441617,-899.777448,0.00019178,2]
[347336841,1735703441627,-899.777448,0.00019178,2]
[347336842,1735703441636,-899.777448,0.00019178,2]
[347336843,1735703441647,-899.777448,0.00019178,2]
[347336844,1735703441657,-899.777448,0.00019178,2]
[347336845,1735703441666,-899.777448,0.00019178,2]
[347336846,1735703441675,-502.33242148,0.00019178,2]
[347336847,1735703441685,-899.777448,0.00019178,2]
[347336848,1735703441694,-500.0,0.00019178,2]
[347336849,1735703441704,-899.777448,0.00019178,2]
[347336850,1735703441714,-505.27439088,0.00019178,2]
[347336851,1735703441724,-899.777448,0.00019178,2]
[347336852,1735703441733,-899.777448,0.00019178,2]
[347336853,1735703441743,-338.35437388,0.00019178,2]
[347336854,1735703441752,-899.777448,0.00019178,2]
[347336855,1735703441762,-899.777448,0.00019178,2]
[347336856,1735703441772,-899.777448,0.00019178,2]
[347336857,1735703441782,-501.13995197,0.00019178,2]
[347336858,1735703441792,-899.777448,0.00019178,2]
[347336859,1735703441802,-899.777448,0.00019178,2]
[347336860,1735703441814,-899.777448,0.00019178,2]
[347336861,1735703441824,-500.0,0.00019178,2]
[347336862,1735703441835,-899.777448,0.00019178,2]
[347336863,1735703441844,-500.0,0.00019178,2]
[347336864,1735703441854,-500.96189171,0.00019178,2]
[347336865,1735703441863,-504.19466438,0.00019178,2]
[347336866,1735703441874,-500.0,0.00019178,2]
[347336867,1735703441884,-500.0,0.00019178,2]
[347336868,1735703441893,-505.96587175,0.00019178,2]
[347336869,1735703441903,-500.0,0.00019178,2]
[347336870,1735703441912,-510.26134508,0.00019178,2]
[347336871,1735703441922,-500.0,0.00019178,2]
[347336872,1735703441935,-508.55742945,0.00019178,2]
[347336873,1735703441944,-500.0,0.00019178,2]
[347336874,1735703441954,-500.0,0.00019178,2]
[347336875,1735703441963,-500.0,0.00019178,2]
[347336876,1735703441972,-1546.73,0.00019178,2]
[347336877,1735703441982,-500.87556695,0.00019178,2]
[347336878,1735703441991,-500.0,0.00019178,2]
[347336879,1735703442001,-501.3829215,0.00019178,2]
[347336880,1735703442010,-1878.64,0.00019178,2]
[347336881,1735703442019,-895.15,0.00019178,2]
[347336882,1735703442029,-501.41036297,0.00019178,2]
[347336883,1735703442039,-501.1872098,0.00019178,2]
[347336884,1735703442049,-501.39089133,0.00019178,2]
[347336885,1735703442060,-500.0,0.00019178,2]
[347336886,1735703442069,-500.0,0.00019178,2]
[347336887,1735703442079,-437.55703379,0.00019178,2]
[347336888,1735703442088,-500.9281985,0.00019178,2]
[347336889,1735703442097,-214.12699504,0.00019178,2]
[347336890,1735703442107,-515.76179804,0.00019178,2]
[347336891,1735703442116,-500.0,0.00019178,2]
[347336892,1735703442125,-500.0,0.00019178,2]
[347336893,1735703442135,-500.0,0.00019178,2]
[347336894,1735703442144,-500.0,0.00019178,2]
[347336895,1735703442154,-503.06552583,0.00019178,2]
[347336896,1735703442163,-500.0,0.00019178,2]
[347336897,1735703442172,-500.0,0.00019178,2]
[347336898,1735703442182,-567.34970279,0.00019178,2]
[347336899,1735703442192,-500.0,0.00019178,2]
[347336900,1735703442202,-504.95818973,0.00019178,2]
[347336901,1735703442211,-501.64319294,0.00019178,2]
[347336902,1735703442221,-500.99271874,0.00019178,2]
[347336903,1735703442230,-502.80158739,0.00019178,2]
[347336904,1735703442239,-502.66716984,0.00019178,2]
[347336905,1735703442248,-506.52866392,0.00019178,2]
[347336906,1735703442258,-501.13986043,0.00019178,2]
[347336907,1735703442267,-503.0469882,0.00019178,2]
[347336908,1735703442276,-503.63358157,0.00019178,2]
[347336909,1735703442285,-500.83422712,0.00019178,2]
[347336910,1735703442295,-501.29439334,0.00019178,2]
[347336911,1735703442304,-500.0,0.00019178,2]
[347336912,1735703442314,-500.54193574,0.00019178,2]
[347336913,1735703442324,-500.0,0.00019178,2]
[347336914,1735703442334,-500.6328467,0.00019178,2]
[347336915,1735703442343,-506.88388579,0.00019178,2]
[347336916,1735703442353,-500.0,0.00019178,2]
[347336917,1735703442362,-500.98171472,0.00019178,2]
[347336918,1735703442371,-504.4418887,0.00019178,2]
[347336919,1735703442381,-504.56290548,0.00019178,2]
[347336920,1735703442391,-500.0,0.00019178,2]
[347336921,1735703442400,-500.0,0.00019178,2]
[347336922,1735703442412,-378.763224,0.00019178,2]
[347336923,1735703442422,-378.763224,0.00019178,2]
[347336924,1735703442432,-378.763224,0.00019178,2]
[347336925,1735703442442,-378.763224,0.00019178,2]
[347336926,1735703442452,-378.763224,0.00019178,2]
[347336927,1735703442462,-378.763224,0.00019178,2]
[347336928,1735703442472,-500.0,0.00019178,2]
[347336929,1735703442482,-378.763224,0.00019178,2]
[347336930,1735703442491,-378.763224,0.00019178,2]
[347336931,1735703442500,-504.77075054,0.00019178,2]
[347336932,1735703442509,-378.763224,0.00019178,2]
[347336933,1735703442519,-378.763224,0.00019178,2]
[347336934,1735703442528,-378.763224,0.00019178,2]
[347336935,1735703442537,-378.763224,0.00019178,2]
[347336936,1735703442547,-378.763224,0.00019178,2]
[347336937,1735703442556,-378.763224,0.00019178,2]
[347336938,1735703442566,-378.763224,0.00019178,2]
[347336939,1735703442575,-378.763224,0.00019178,2]
[347336940,1735703442585,-378.763224,0.00019178,2]
[347336941,1735703442595,-378.763224,0.00019178,2]
[347336942,1735703442604,-378.763224,0.00019178,2]
[347336943,1735703442614,-378.763221,0.00019178,2]
[347336944,1735703442623,-354.1511967,0.00019178,2]
[347336945,1735703442633,-1980.72,0.00019178,2]
[347336946,1735703442642,-504.10163068,0.00019178,2]
[347336947,1735703442651,-505.46498971,0.00019178,2]
[347336948,1735703442661,-503.45666955,0.00019178,2]
[347336949,1735703442670,-500.0,0.00019178,2]
[347336950,1735703442679,-965.06,0.00019178,2]
[347336951,1735703442688,-321.389409,0.00019178,2]
[347336952,1735703442698,-321.389409,0.00019178,2]
[347336953,1735703442707,-321.389409,0.00019178,2]
[347336954,1735703442716,-321.389409,0.00019178,2]
[347336955,1735703442726,-321.389409,0.00019178,2]
[347336956,1735703442735,-321.389409,0.00019178,2]
[347336957,1735703442745,-506.04187601,0.00019178,2]
[347336958,1735703442754,-321.389409,0.00019178,2]
[347336959,1735703442763,-321.389409,0.00019178,2]
[347336961,1735703442773,-1486.5,0.00019178,2]
[347336963,1735703442783,-1390.59,0.00019178,2]
[347336964,1735703442792,-321.389409,0.00019178,2]
[347336965,1735703442802,-321.389409,0.00019178,2]
[347336966,1735703442813,-321.389409,0.00019178,2]
[347336967,1735703442823,-500.0,0.00019178,2]
[347336968,1735703442833,-321.389409,0.00019178,2]
[347336969,1735703442842,-321.389409,0.00019178,2]
[347336970,1735703442852,-321.389409,0.00019178,2]
[347336971,1735703442861,-321.389409,0.00019178,2]
[347336972,1735703442870,-2029.62,0.00019178,2]
[347336973,1735703442880,-321.389409,0.00019178,2]
[347336974,1735703442890,-502.50002798,0.00019178,2]
[347336975,1735703442900,-695.97,0.00019178,2]
[347336976,1735703442909,-502.22573434,0.00019178,2]
[347336977,1735703442919,-501.38817773,0.00019178,2]
[347336978,1735703442933,-500.0,0.00019178,2]
[347336979,1735703442942,-500.0,0.00019178,2]
[347336980,1735703442951,-960.36,0.00019178,2]
[347336981,1735703442960,-500.41627481,0.00019178,2]
[347336982,1735703442970,-1119.76,0.00019178,2]
[347336983,1735703442981,-500.0,0.00019178,2]
[347336984,1735703442991,-500.0,0.00019178,2]
[347336985,1735703443001,-501.57658017,0.00019178,2]
[347336986,1735703443011,-500.0,0.00019178,2]
[347336987,1735703443021,-535.22659796,0.00019178,2]
[347336988,1735703443031,-501.22785769,0.00019178,2]
[347336989,1735703443040,-893.79,0.00019178,2]
[347336990,1735703443050,-500.0,0.00019178,2]
[347336991,1735703443059,-621.12,0.00019178,2]
[347336992,1735703443069,-1039.63,0.00019178,2]
[347336993,1735703443078,-500.0,0.00019178,2]
[347336994,1735703443088,-947.96,0.00019178,2]
[347336995,1735703443098,-524.50934523,0.00019178,2]
[347336996,1735703443209,-500.0,0.00019178,2]
[347336997,1735703443219,-508.36952129,0.00019178,2]
[347336998,1735703443229,-500.0,0.00019178,2]
[347336999,1735703443239,-500.0,0.00019178,2]
[347337000,1735703443249,-504.04238459,0.00019178,2]
[347337001,1735703443259,-500.81696419,0.00019178,2]
[347337002,1735703443270,-1357.15,0.00019178,2]
[347337003,1735703443280,-1357.15,0.00019178,2]
[347337004,1735703443290,-898.84,0.00019178,2]
[347337005,1735703443300,-1357.15,0.00019178,2]
[347337006,1735703443310,-1357.15,0.00019178,2]
[347337007,1735703443319,-1357.15,0.00019178,2]
[347337008,1735703443329,-1357.15,0.00019178,2]
[347337009,1735703443338,-1357.15,0.00019178,2]
[347337010,1735703443348,-1357.15,0.00019178,2]
[347337011,1735703443357,-500.0,0.00019178,2]
[347337012,1735703443367,-1357.15,0.00019178,2]
[347337013,1735703443376,-1357.15,0.00019178,2]
[347337014,1735703443386,-1357.15,0.00019178,2]
[347337015,1735703443396,-1357.15,0.00019178,2]
[347337016,1735703443405,-1357.15,0.00019178,2]
[347337017,1735703443414,-1357.15,0.00019178,2]
[347337018,1735703443424,-1357.15,0.00019178,2]
[347337019,1735703443434,-1357.15,0.00019178,2]
[347337020,1735703443444,-500.38249023,0.00019178,2]
[347337021,1735703443454,-1357.15,0.00019178,2]
[347337022,1735703443464,-500.0,0.00019178,2]
[347337023,1735703443474,-1357.15,0.00019178,2]
[347337024,1735703443483,-1357.15,0.00019178,2]
[347337025,1735703443493,-1357.15,0.00019178,2]
[347337026,1735703443503,-1357.15,0.00019178,2]
[347337027,1735703443513,-1357.15,0.00019178,2]
[347337028,1735703443523,-1357.15,0.00019178,2]
[347337030,1735703443532,-500.92504484,0.00019178,2]
[347337032,1735703443542,-7176.21,0.00019178,2]
[347337034,1735703443552,-1357.30701764,0.00019178,2]
[347337036,1735703443561,-500.0,0.00019178,2]
[347337038,1735703443571,-500.0,0.00019178,2]
[347337040,1735703443581,-506.48103982,0.00019178,2]
[347337042,1735703443590,-694.5,0.00019178,2]